lending/lending_fUSD_20240621
["ID","MTS","AMOUNT","RATE_DAILY","PERIOD"]
[330095782,1718989976587,-150.0,0.00043071,30]
[330095783,1718989976596,-529.79670519,0.00043091,30]
[330095784,1718989976607,-176.06219812,0.00043091,30]
[330095785,1718989976616,-229.83105618,0.00043091,30]
[330095786,1718989976626,-1849.87142647,0.00043098,120]
[330095787,1718989976635,-150.0,0.00043105,30]
[330095788,1718989976644,-529.79670519,0.00043136,30]
[330095789,1718989976653,-176.06219812,0.00043136,30]
[330095790,1718989976663,-229.83105618,0.00043136,30]
[330095791,1718989976672,-150.0,0.00043154,30]
[330095792,1718989976681,-529.79670519,0.00043182,30]
[330095793,1718989976691,-176.06219812,0.00043182,30]
[330095794,1718989976700,-229.83105618,0.00043182,30]
[330095795,1718989976710,-150.0,0.000432,30]
[330095796,1718989976719,-150.0,0.00043224,30]
[330095797,1718989976728,-529.79670519,0.00043227,30]
[330095798,1718989976738,-176.06219812,0.00043227,30]
[330095799,1718989976751,-229.83105618,0.00043227,30]
[330095800,1718989976760,-150.0,0.00043269,30]
[330095801,1718989976770,-529.79670519,0.00043273,30]
[330095802,1718989976779,-176.06219812,0.00043273,30]
[330095803,1718989976788,-229.83105618,0.00043273,30]
[330095804,1718989976798,-529.79670519,0.00043318,30]
[330095805,1718989976809,-176.06219812,0.00043318,30]
[330095806,1718989976820,-229.83105618,0.00043318,30]
[330095807,1718989976830,-150.0,0.00043342,30]
[330095808,1718989976840,-1000.0,0.00043356,30]
[330095809,1718989976850,-529.79670519,0.00043364,30]
[330095810,1718989976859,-176.06219812,0.00043364,30]
[330095811,1718989976870,-229.83105618,0.00043364,30]
[330095812,1718989976881,-150.0,0.00043385,30]
[330095813,1718989976890,-529.79670519,0.00043409,30]
[330095814,1718989976900,-176.06219812,0.00043409,30]
[330095815,1718989976911,-229.83105618,0.00043409,30]
[330095816,1718989976920,-529.79670519,0.00043455,30]
[330095817,1718989976929,-176.06219812,0.00043455,30]
[330095818,1718989976939,-229.83105618,0.00043455,30]
[330095819,1718989976948,-150.0,0.00043461,30]
[330095820,1718989976957,-150.0,0.00043485,120]
[330095821,1718989976967,-529.79670519,0.000435,30]
[330095822,1718989976976,-176.06219812,0.000435,30]
[330095823,1718989976986,-150.0,0.000435,30]
[330095824,1718989976996,-229.83105618,0.000435,30]
[330095825,1718989977007,-150.0,0.000435,30]
[330095826,1718989977016,-529.79670519,0.00043545,30]
[330095827,1718989977026,-176.06219812,0.00043545,30]
[330095828,1718989977035,-229.83105618,0.00043545,30]
[330095829,1718989977045,-150.0,0.00043579,30]
[330095830,1718989977054,-161.68041896,0.0004358,120]
[330095831,1718989977063,-529.79670519,0.00043591,30]
[330095832,1718989977072,-176.06219812,0.00043591,30]
[330095833,1718989977082,-229.83105618,0.00043591,30]
[330095834,1718989977091,-150.0,0.00043615,30]
[330095835,1718989977101,-529.79670519,0.00043636,30]
[330095836,1718989977110,-176.06219812,0.00043636,30]
[330095837,1718989977120,-229.83105618,0.00043636,30]
[330095838,1718989977134,-529.79670519,0.00043682,30]
[330095839,1718989977143,-176.06219812,0.00043682,30]
[330095840,1718989977154,-229.83105618,0.00043682,30]
[330095841,1718989977165,-150.0,0.00043697,30]
[330095842,1718989977175,-1176.36675554,0.000437,120]
[330095843,1718989977185,-446.5323535,0.000437,33]
[330095844,1718989977194,-150.0,0.00043714,30]
[330095845,1718989977205,-529.79670519,0.00043727,30]
[330095846,1718989977215,-176.06219812,0.00043727,30]
[330095847,1718989977224,-229.83105618,0.00043727,30]
[330095848,1718989977234,-150.0,0.00043731,30]
[330095849,1718989977243,-529.79670519,0.00043773,30]
[330095850,1718989977252,-176.06219812,0.00043773,30]
[330095851,1718989977262,-229.83105618,0.00043773,30]
[330095852,1718989977272,-2000.0,0.00043781,30]
[330095853,1718989977281,-305.46525588,0.000438,120]
[330095854,1718989977291,-1000.0,0.000438,120]
[330095855,1718989977300,-1000.0,0.000438,120]
[330095856,1718989977309,-1000.0,0.000438,120]
[330095857,1718989977318,-1000.0,0.000438,120]
[330095858,1718989977327,-1000.0,0.000438,120]
[330095859,1718989977336,-1157.33,0.000438,120]
[330095860,1718989977345,-464.61540233,0.000438,30]
[330095861,1718989977355,-470.11473502,0.000438,120]
[330095862,1718989977364,-1043.89826726,0.000438,111]
[330095863,1718989977373,-1000.0,0.000438,2]
[330095864,1718989977382,-324.06916132,0.000438,2]
[330095865,1718989977391,-761.21395899,0.000438,2]
[330095866,1718989977400,-2000.0,0.000438,2]
[330095867,1718989977410,-150.0,0.00043816,30]
[330095868,1718989977419,-529.79670519,0.00043818,30]
[330095869,1718989977428,-176.06219812,0.00043818,30]
[330095870,1718989977438,-229.83105618,0.00043818,30]
[330095871,1718989977447,-1104.44052225,0.00043835,30]
[330095872,1718989977456,-502.93,0.00043835,120]
[330095873,1718989977465,-502.93,0.00043835,120]
[330095874,1718989977474,-502.93,0.00043835,120]
[330095875,1718989977483,-502.93,0.00043835,120]
[330095876,1718989977492,-502.93,0.00043835,120]
[330095877,1718989977502,-502.93,0.00043835,120]
[330095878,1718989977511,-502.93,0.00043835,120]
[330095879,1718989977520,-502.93,0.00043835,120]
[330095880,1718989977529,-502.93,0.00043835,120]
[330095881,1718989977538,-502.93,0.00043835,120]
[330095882,1718989977547,-502.93,0.00043835,120]
[330095883,1718989977557,-502.93,0.00043835,120]
[330095884,1718989977567,-502.93,0.00043835,120]
[330095885,1718989977578,-502.93,0.00043835,120]
[330095886,1718989977587,-502.93,0.00043835,120]
[330095887,1718989977596,-502.93,0.00043835,120]
[330095888,1718989977607,-502.93,0.00043835,120]
[330095889,1718989977617,-502.93,0.00043835,120]
[330095890,1718989977627,-502.93,0.00043835,120]
[330095891,1718989977638,-502.93,0.00043835,120]
[330095892,1718989977648,-502.93,0.00043835,120]
[330095893,1718989977658,-502.93,0.00043835,120]
[330095894,1718989977667,-502.93,0.00043835,120]
[330095895,1718989977679,-503.07798223,0.00043835,120]
[330095896,1718989977689,-19704.08,0.00043835,33]
[330095897,1718989977699,-3000.0,0.00043835,120]
[330095898,1718989977710,-3000.0,0.00043835,120]
[330095899,1718989977720,-3000.0,0.00043835,120]
[330095900,1718989977730,-3000.0,0.00043835,120]
[330095901,1718989977739,-3000.0,0.00043835,120]
[330095902,1718989977750,-3000.0,0.00043835,120]
[330095903,1718989977760,-1957.55715977,0.00043835,120]
[330095904,1718989977769,-1487.44,0.00043836,60]
[330095905,1718989977781,-500.0,0.00043836,14]
[330095906,1718989977791,-150.0,0.00043846,30]
[330095907,1718989977802,-529.79670519,0.00043864,30]
[330095908,1718989977813,-176.06219812,0.00043864,30]
[330095909,1718989977823,-229.83105618,0.00043864,30]
[330095910,1718989977834,-150.0,0.00043875,30]
[330095911,1718989977844,-150.0,0.00043875,30]
[330095912,1718989977855,-1100.0,0.00043904,30]
[330095913,1718989977865,-529.79670519,0.00043909,30]
[330095914,1718989977878,-176.06219812,0.00043909,30]
[330095915,1718989977887,-229.83105618,0.00043909,30]
[330095916,1718989977897,-150.0,0.00043934,30]
[330095917,1718989977907,-2519.0,0.00043951,99]
[330095918,1718989977916,-529.79670519,0.00043955,30]
[330095919,1718989977926,-176.06219812,0.00043955,30]
[330095920,1718989977936,-229.83105618,0.00043955,30]
[330095921,1718989977945,-150.0,0.00043962,30]
[330095922,1718989977954,-200.0,0.00044,15]
[330095923,1718989977963,-750.0,0.00044,120]
[330095924,1718989977973,-560.0,0.00044,120]
[330095925,1718989977982,-67380.23054469,0.00044,2]
[330095926,1718989977992,-210.95034472,0.00044,120]
[330095927,1718989978001,-221.93841657,0.00044,60]
[330095928,1718989978014,-529.79670519,0.00044,30]
[330095929,1718989978023,-176.06219812,0.00044,30]
[330095930,1718989978033,-229.83105618,0.00044,30]
[330095931,1718989978043,-529.79670519,0.00044045,30]
[330095932,1718989978052,-176.06219812,0.00044045,30]
[330095933,1718989978061,-229.83105618,0.00044045,30]
[330095934,1718989978070,-150.0,0.00044053,30]
[330095935,1718989978079,-150.0,0.00044077,30]
[330095936,1718989978089,-529.79670519,0.00044091,30]
[330095937,1718989978098,-176.06219812,0.00044091,30]
[330095938,1718989978108,-229.83105618,0.00044091,30]
[330095939,1718989978118,-2500.0,0.000441,2]
[330095940,1718989978132,-150.0,0.000441,30]
[330095941,1718989978141,-529.79670519,0.00044136,30]
[330095942,1718989978153,-176.06219812,0.00044136,30]
[330095943,1718989978162,-229.83105618,0.00044136,30]
[330095944,1718989978173,-150.0,0.00044162,120]
[330095945,1718989978183,-150.0,0.00044171,30]
[330095946,1718989978193,-529.79670519,0.00044182,30]
[330095947,1718989978204,-176.06219812,0.00044182,30]
[330095948,1718989978215,-229.83105618,0.00044182,30]
[330095949,1718989978224,-150.0,0.00044186,120]
[330095950,1718989978234,-150.0,0.00044192,30]
[330095951,1718989978244,-1145.45,0.000442,5]
[330095952,1718989978255,-529.79670519,0.00044227,30]
[330095953,1718989978265,-176.06219812,0.00044227,30]
[330095954,1718989978275,-229.83105618,0.00044227,30]
[330095955,1718989978284,-529.79670519,0.00044273,30]
[330095956,1718989978294,-176.06219812,0.00044273,30]
[330095957,1718989978303,-229.83105618,0.00044273,30]
[330095958,1718989978313,-150.0,0.00044289,30]
[330095959,1718989978322,-1038.0,0.00044296,30]
[330095960,1718989978331,-150.0,0.00044308,30]
[330095961,1718989978342,-529.79670519,0.00044318,30]
[330095962,1718989978354,-176.06219812,0.00044318,30]
[330095963,1718989978363,-229.83105618,0.00044318,30]
[330095964,1718989978372,-152.0,0.00044347,31]
[330095965,1718989978382,-2857.96594897,0.00044349,16]
[330095966,1718989978391,-150.0,0.00044357,30]
[330095967,1718989978401,-529.79670519,0.00044364,30]
[330095968,1718989978414,-176.06219812,0.00044364,30]
[330095969,1718989978424,-229.83105618,0.00044364,30]
[330095970,1718989978433,-500.0,0.000444,120]
[330095971,1718989978443,-992166.51315855,0.000444,30]
[330095972,1718989978452,-150.0,0.00044408,30]
[330095973,1718989978462,-529.79670519,0.00044409,30]
[330095974,1718989978472,-176.06219812,0.00044409,30]
[330095975,1718989978481,-229.83105618,0.00044409,30]
[330095976,1718989978491,-150.0,0.00044423,30]
[330095977,1718989978500,-529.79670519,0.00044455,30]
[330095978,1718989978512,-176.06219812,0.00044455,30]
[330095979,1718989978521,-229.83105618,0.00044455,30]
[330095980,1718989978530,-529.79670519,0.000445,30]
[330095981,1718989978539,-176.06219812,0.000445,30]
[330095982,1718989978549,-229.83105618,0.000445,30]
[330095983,1718989978559,-150.0,0.00044526,30]
[330095984,1718989978568,-150.0,0.00044538,30]
[330095985,1718989978577,-529.79670519,0.00044545,30]
[330095986,1718989978587,-176.06219812,0.00044545,30]
[330095987,1718989978597,-229.83105618,0.00044545,30]
[330095988,1718989978606,-529.79670519,0.00044591,30]
[330095989,1718989978616,-176.06219812,0.00044591,30]
[330095990,1718989978631,-229.83105618,0.00044591,30]
[330095991,1718989978640,-150.0,0.00044616,120]
[330095992,1718989978650,-529.79670519,0.00044636,30]
[330095993,1718989978659,-176.06219812,0.00044636,30]
[330095994,1718989978670,-229.83105618,0.00044636,30]
[330095995,1718989978679,-150.0,0.00044645,30]
[330095996,1718989978690,-150.0,0.00044654,30]
[330095997,1718989978700,-150.0,0.00044656,120]
[330095998,1718989978710,-2627.52309,0.00044678,50]
[330095999,1718989978720,-529.79670519,0.00044682,30]
[330096000,1718989978730,-176.06219812,0.00044682,30]
[330096001,1718989978740,-229.83105618,0.00044682,30]
[330096002,1718989978749,-393.07779615,0.000447,30]
[330096003,1718989978761,-529.79670519,0.00044727,30]
[330096004,1718989978770,-176.06219812,0.00044727,30]
[330096005,1718989978779,-229.83105618,0.00044727,30]
[330096006,1718989978791,-150.0,0.00044763,30]
[330096007,1718989978800,-150.0,0.00044769,30]
[330096008,1718989978811,-529.79670519,0.00044773,30]
[330096009,1718989978821,-176.06219812,0.00044773,30]
[330096010,1718989978831,-229.83105618,0.00044773,30]
[330096011,1718989978842,-2000.0,0.00044775,5]
[330096012,1718989978854,-2000.0,0.00044775,5]
[330096013,1718989978864,-2000.0,0.00044775,5]
[330096014,1718989978874,-2000.0,0.00044775,5]
[330096015,1718989978884,-1755.6175,0.00044775,5]
[330096016,1718989978893,-2000.0,0.00044775,5]
[330096017,1718989978904,-2000.3564,0.00044775,5]
[330096018,1718989978914,-2000.0,0.00044775,5]
[330096019,1718989978923,-500.0,0.00044789,20]
[330096020,1718989978934,-529.79670519,0.00044818,30]
[330096021,1718989978944,-176.06219812,0.00044818,30]
[330096022,1718989978954,-229.83105618,0.00044818,30]
[330096023,1718989978964,-529.79670519,0.00044864,30]
[330096024,1718989978974,-176.06219812,0.00044864,30]
[330096025,1718989978985,-229.83105618,0.00044864,30]
[330096026,1718989978995,-150.0,0.00044882,30]
[330096027,1718989979004,-150.0,0.00044885,30]
[330096028,1718989979018,-150.0,0.00044892,120]
[330096029,1718989979028,-529.79670519,0.00044909,30]
[330096030,1718989979037,-176.06219812,0.00044909,30]
[330096031,1718989979048,-229.83105618,0.00044909,30]
[330096032,1718989979059,-528.91,0.00044937,2]
[330096033,1718989979069,-529.79670519,0.00044955,30]
[330096034,1718989979079,-176.06219812,0.00044955,30]
[330096035,1718989979088,-229.83105618,0.00044955,30]
[330096036,1718989979098,-1596.453869,0.0004496,20]
[330096037,1718989979108,-400.0,0.0004497,3]
[330096038,1718989979117,-300.0,0.0004497,3]
[330096039,1718989979131,-1000.0,0.0004498,20]
[330096040,1718989979141,-5000.0,0.00044986,4]
[330096041,1718989979150,-1000.0,0.00044999,120]
[330096042,1718989979160,-2236.15605309,0.00045,14]
[330096043,1718989979171,-15009.9853737,0.00045,15]
[330096044,1718989979182,-150.0,0.00045,10]
[330096045,1718989979192,-1077008.87840628,0.00045,15]
[330096046,1718989979202,-384.32195319,0.00045,15]
[330096047,1718989979213,-1500.0,0.00045,30]
[330096048,1718989979222,-500.0,0.00045,30]
[330096049,1718989979232,-705490.77696569,0.00045,30]
[330096050,1718989979242,-150.0,0.00045,85]
[330096051,1718989979251,-353.0,0.00045,120]
[330096052,1718989979266,-754.999988,0.00045,120]
[330096053,1718989979275,-1658.19766983,0.00045,2]
[330096054,1718989979284,-232.59903924,0.00045,30]
[330096055,1718989979296,-1149.30102705,0.00045,120]
[330096056,1718989979306,-1000000.0,0.00045,50]
[330096057,1718989979315,-248.0,0.00045,30]
[330096058,1718989979325,-220.0,0.00045,30]
[330096059,1718989979335,-2000.0,0.00045,90]
[330096060,1718989979345,-2000.0,0.00045,90]
[330096061,1718989979355,-2000.0,0.00045,90]
[330096062,1718989979366,-225.0,0.00045,30]
[330096063,1718989979375,-5006.0,0.00045,30]
[330096064,1718989979385,-658.29949554,0.00045,120]
[330096065,1718989979394,-200.0,0.00045,120]
[330096066,1718989979404,-1850.0,0.00045,2]
[330096067,1718989979414,-1000.0,0.00045,20]
[330096068,1718989979424,-529.79670519,0.00045,30]
[330096069,1718989979434,-176.06219812,0.00045,30]
[330096070,1718989979443,-170.54743617,0.00045,30]
[330096071,1718989979453,-163.7976732,0.00045,30]
[330096072,1718989979463,-229.83105618,0.00045,30]
[330096073,1718989979473,-293.82305985,0.00045,30]
[330096074,1718989979483,-270.3910607,0.00045,30]
[330096075,1718989979492,-180.88293745,0.00045,30]
[330096076,1718989979503,-201.76980989,0.00045,30]
[330096077,1718989979516,-177.91685177,0.00045,30]
[330096078,1718989979525,-178.79605418,0.00045,30]
[330096079,1718989979535,-1168.0273,0.0004514,30]
[330096080,1718989979544,-19704.08,0.00045205,35]
[330096081,1718989979553,-400.0,0.000453,31]
[330096082,1718989979563,-785.26093401,0.00045448,60]
[330096083,1718989979572,-202.0,0.00045543,90]
[330096084,1718989979582,-7576.44376816,0.00045871,4]
[330096085,1718989979592,-678.48,0.00045926,2]
[330096086,1718989979602,-1000.0,0.00045999,120]
[330096087,1718989979612,-50000.0,0.00046,36]
[330096088,1718989979622,-10000.0,0.00046,2]
[330096089,1718989979632,-1000.0,0.00046,30]
[330096090,1718989979642,-256.06930015,0.00046,15]
[330096091,1718989979652,-954.19719842,0.00046,30]
[330096092,1718989979662,-2070.0,0.00046,30]
[330096093,1718989979671,-167.4,0.00046,96]
[330096094,1718989979681,-650.0,0.00046,120]
[330096095,1718989979691,-500.0,0.00046,120]
[330096096,1718989979700,-1500.0,0.00046,30]
[330096097,1718989979711,-1000000.0,0.00046,55]
[330096098,1718989979720,-202.369141,0.00046,22]
[330096099,1718989979730,-152.0,0.00046,31]
[330096100,1718989979740,-4584.20322268,0.000465,2]
[330096101,1718989979750,-843.44418923,0.000465,120]
[330096102,1718989979761,-19704.08,0.00046575,120]
[330096103,1718989979771,-1038.0,0.00046627,30]
[330096104,1718989979781,-705.4101,0.00046688,7]
[330096105,1718989979791,-2500.0,0.000468,2]
[330096106,1718989979800,-15538.3247288,0.0004698,30]
[330096107,1718989979811,-1000.0,0.00046999,120]
[330096108,1718989979820,-395.44,0.00047,30]
[330096109,1718989979830,-314.95,0.00047,30]
[330096110,1718989979840,-1889.67997086,0.00047,30]
[330096111,1718989979850,-622.82,0.00047,30]
[330096112,1718989979860,-1900.0,0.00047,2]
[330096113,1718989979870,-705.4101,0.00047088,7]
[330096114,1718989979880,-528.91,0.00047201,2]
[330096115,1718989979891,-5498.4,0.00047202,117]
[330096116,1718989979902,-1000.0,0.000474,120]
[330096117,1718989979913,-273.48689146,0.0004748,120]
[330096118,1718989979922,-2857.96594897,0.00047529,19]
[330096119,1718989979932,-1076.0,0.0004758,28]
[330096120,1718989979941,-5151.34324961,0.000476,2]
[330096121,1718989979951,-19704.08,0.00047945,120]
[330096122,1718989979960,-845.78587,0.0004799,2]
[330096123,1718989979969,-1000.0,0.00047999,120]
[330096124,1718989979979,-6306.51153404,0.00048,30]
[330096125,1718989979988,-116000.0,0.00048,30]
[330096126,1718989979997,-116000.0,0.00048,31]
[330096127,1718989980010,-116000.0,0.00048,32]
[330096128,1718989980019,-116000.0,0.00048,33]
[330096129,1718989980029,-116000.0,0.00048,34]
[330096130,1718989980038,-116000.0,0.00048,35]
[330096131,1718989980048,-116000.0,0.00048,36]
[330096132,1718989980058,-116000.0,0.00048,38]
[330096133,1718989980067,-116000.0,0.00048,37]
[330096134,1718989980077,-116000.0,0.00048,39]
[330096135,1718989980086,-116000.0,0.00048,29]
[330096136,1718989980096,-116000.0,0.00048,28]
[330096137,1718989980105,-116000.0,0.00048,27]
[330096138,1718989980115,-116000.0,0.00048,26]
[330096139,1718989980126,-116000.0,0.00048,25]
[330096140,1718989980137,-116000.0,0.00048,24]
[330096141,1718989980146,-116000.0,0.00048,23]
[330096142,1718989980155,-116000.0,0.00048,22]
[330096143,1718989980166,-116000.0,0.00048,21]
[330096144,1718989980176,-116000.0,0.00048,20]
[330096145,1718989980186,-155.0,0.00048,2]
[330096146,1718989980196,-296.95681063,0.00048,2]
[330096147,1718989980206,-570.40509397,0.00048,30]
[330096148,1718989980218,-30227.76406391,0.00048,20]
[330096149,1718989980228,-550.0,0.00048,120]
[330096150,1718989980239,-750.2912817,0.00048,120]
[330096151,1718989980249,-1164.125613,0.00048,120]
[330096152,1718989980259,-200.0,0.00048,25]
[330096153,1718989980269,-1076.0,0.00048593,28]
[330096154,1718989980278,-286.54522234,0.000487,120]
[330096155,1718989980288,-1463.68814333,0.00048775,120]
[330096156,1718989980298,-17000.0,0.0004878,30]
[330096157,1718989980309,-761.52642048,0.000488,120]
[330096158,1718989980319,-201.12256905,0.000488,120]
[330096159,1718989980329,-4700.0,0.000488,120]
[330096160,1718989980339,-6320.20324086,0.0004899,14]
[330096161,1718989980350,-1000.0,0.00048999,120]
[330096162,1718989980360,-21515.3897355,0.00049,2]
[330096163,1718989980369,-151.39180045,0.00049,10]
[330096164,1718989980380,-733.99126857,0.00049,30]
[330096165,1718989980389,-583.23338244,0.00049,120]
[330096166,1718989980401,-1814.0,0.00049,120]
[330096167,1718989980410,-500.0,0.00049,120]
[330096168,1718989980420,-1950.0,0.00049,2]
[330096169,1718989980430,-1038.0,0.00049082,30]
[330096170,1718989980440,-855.0,0.000493,2]
[330096171,1718989980450,-2000.0,0.000493,2]
[330096172,1718989980460,-350.0,0.00049315,30]
[330096173,1718989980470,-300.0,0.00049315,30]
[330096174,1718989980480,-300.0,0.00049315,30]
[330096175,1718989980490,-300.0,0.00049315,30]
[330096176,1718989980500,-300.0,0.00049315,30]
[330096177,1718989980512,-300.0,0.00049315,30]
[330096178,1718989980522,-300.0,0.00049315,30]
[330096179,1718989980532,-300.0,0.00049315,30]
[330096180,1718989980542,-300.0,0.00049315,30]
[330096181,1718989980552,-260.0,0.00049315,30]
[330096182,1718989980562,-200.0,0.00049315,30]
[330096183,1718989980572,-19704.08,0.00049315,120]
[330096184,1718989980582,-500.0,0.00049315,16]
[330096185,1718989980592,-200000.0,0.00049332,30]
[330096186,1718989980602,-306.08727317,0.000494,120]
[330096187,1718989980612,-18150.14374395,0.0004944,30]
[330096188,1718989980623,-528.91,0.00049464,2]
[330096189,1718989980632,-2500.0,0.000496,2]
[330096190,1718989980642,-1076.0,0.00049605,28]
[330096191,1718989980652,-272.58311591,0.00049692,120]
[330096192,1718989980661,-116615.38398008,0.000498,30]
[330096193,1718989980671,-25000.0,0.000499,120]
[330096194,1718989980681,-250.84831657,0.0004998,31]
[330096195,1718989980691,-5170.78149362,0.00049999,15]
[330096196,1718989980700,-1000.0,0.00049999,120]
[330096197,1718989980710,-234.43182335,0.0005,4]
[330096198,1718989980720,-2580.33655105,0.0005,5]
[330096199,1718989980730,-155.0,0.0005,2]
[330096200,1718989980740,-1122.84543484,0.0005,2]
[330096201,1718989980750,-200.0,0.0005,2]
[330096202,1718989980762,-83590.0,0.0005,15]
[330096203,1718989980771,-155.0,0.0005,3]
[330096204,1718989980781,-17517.46511356,0.0005,30]
[330096205,1718989980791,-180541.4073911,0.0005,14]
[330096206,1718989980803,-6542.19755145,0.0005,30]
[330096207,1718989980812,-60699.49050654,0.0005,30]
[330096208,1718989980823,-379.73094955,0.0005,4]
[330096209,1718989980833,-93442.09587327,0.0005,3]
[330096210,1718989980844,-329.45932761,0.0005,30]
[330096211,1718989980855,-1906.99874821,0.0005,2]
[330096212,1718989980864,-14591.62,0.0005,7]
[330096213,1718989980874,-3920.37,0.0005,7]
[330096214,1718989980885,-217.93785979,0.0005,4]
[330096215,1718989980895,-500.0,0.0005,120]
[330096216,1718989980904,-200.0,0.0005,120]
[330096217,1718989980915,-166.79484037,0.0005,120]
[330096218,1718989980927,-150.0,0.0005,120]
[330096219,1718989980937,-450.0,0.0005,120]
[330096220,1718989981208,-1503.61401194,0.0005,60]
[330096221,1718989981218,-624.16873109,0.0005,120]
[330096222,1718989981229,-35686.97987489,0.0005,15]
[330096223,1718989981238,-247.04081174,0.0005,120]
[330096224,1718989981249,-815.63264202,0.0005,120]
[330096225,1718989981262,-1216.09022476,0.0005,120]
[330096226,1718989981273,-803.29169704,0.0005,120]
[330096227,1718989981283,-231.72573453,0.0005,120]
[330096228,1718989981294,-500.09089055,0.0005,120]
[330096229,1718989981303,-200.0,0.0005,120]
[330096230,1718989981312,-200.0,0.0005,120]
[330096231,1718989981322,-13849.0,0.0005,10]
[330096232,1718989981331,-18703.75791396,0.0005,2]
[330096233,1718989981340,-413.32259534,0.0005,120]
[330096234,1718989981349,-200.0,0.0005,27]
[330096235,1718989981358,-200.0,0.0005,120]
[330096236,1718989981368,-391.37484811,0.00050033,120]
[330096237,1718989981377,-5954.0,0.00050453,117]
[330096238,1718989981387,-1076.0,0.00050617,28]
[330096239,1718989981396,-19704.08,0.00050684,120]
[330096240,1718989981405,-2857.96594897,0.00050709,22]
[330096241,1718989981414,-293.14312401,0.0005089,120]
[330096242,1718989981424,-150.0,0.000509,30]
[330096243,1718989981433,-1000.0,0.00050999,120]
[330096244,1718989981442,-150.0,0.00051,15]
[330096245,1718989981451,-4389.37720336,0.00051,30]
[330096246,1718989981461,-961.37434129,0.00051,120]
[330096247,1718989981471,-2000.0,0.00051,2]
[330096248,1718989981481,-484.34886837,0.000515,2]
[330096249,1718989981490,-155.0,0.000515,120]
[330096250,1718989981500,-1076.0,0.0005163,28]
[330096251,1718989981516,-1038.0,0.00051665,30]
[330096252,1718989981526,-528.91,0.00051728,2]
[330096253,1718989981535,-1187.57067145,0.0005195,75]
[330096254,1718989981544,-678.48,0.00051997,2]
[330096255,1718989981553,-1000.0,0.00051999,120]
[330096256,1718989981563,-16320.2177952,0.00052,30]
[330096257,1718989981572,-400.0,0.00052,120]
[330096258,1718989981581,-1000.0,0.00052054,120]
[330096259,1718989981591,-1000.0,0.00052054,120]
[330096260,1718989981600,-1000.0,0.00052054,120]
[330096261,1718989981609,-1000.0,0.00052054,120]
[330096262,1718989981619,-1000.0,0.00052054,120]
[330096263,1718989981628,-1000.0,0.00052054,120]
[330096264,1718989981638,-1000.0,0.00052054,120]
[330096265,1718989981648,-1000.0,0.00052054,120]
[330096266,1718989981657,-1000.0,0.00052054,120]
[330096267,1718989981667,-1000.0,0.00052054,120]
[330096268,1718989981678,-982.75457797,0.00052054,120]
[330096269,1718989981689,-19704.08,0.00052054,120]
[330096270,1718989981700,-2000.0,0.00052054,120]
[330096271,1718989981710,-2000.0,0.00052054,120]
[330096272,1718989981720,-2000.0,0.00052054,120]
[330096273,1718989981730,-2000.0,0.00052054,120]
[330096274,1718989981740,-2000.0,0.00052054,120]
[330096275,1718989981750,-2000.0,0.00052054,120]
[330096276,1718989981760,-2000.0,0.00052054,120]
[330096277,1718989981773,-2000.0,0.00052054,120]
[330096278,1718989981789,-2000.0,0.00052054,120]
[330096279,1718989981799,-2000.0,0.00052054,120]
[330096280,1718989981808,-2000.0,0.00052054,120]
[330096281,1718989981819,-1259.7826653,0.00052054,120]